bitfinex/quotes_ETHUSD_20250904
["timestamp","ask_amount","ask_price","bid_price","bid_amount"]
[1757017882044,0.50107781,4312.2,4312.1,5.00961125]
[1757017883342,0.001,4312.4,4312.2,2.31895068]
[1757017883646,0.50047909,4312.3,4312.2,3.1524019]
[1757017883847,0.50047909,4312.3,4312.2,3.4475019]
[1757017884043,0.50047909,4312.3,4312.2,4.95005765]
[1757017884711,0.50047909,4312.3,4312.2,2.63105575]
[1757017885134,0.50047909,4312.3,4312.2,2.22685575]
[1757017885347,0.50047909,4312.3,4312.2,1.3951]
[1757017885548,0.50047909,4312.3,4312.2,1.8243]
[1757017886446,0.50047909,4312.3,4312.2,1.3951]
[1757017887357,0.50047909,4312.3,4312.2,1.8243]
[1757017888514,0.50047909,4312.3,4312.2,0.7243]
[1757017888930,0.50047909,4312.3,4312.2,1.8243]
[1757017890152,0.50047909,4312.3,4312.1,0.004]
[1757017890340,2.81948099,4312.2,4312.1,0.004]
[1757017890541,4.05278099,4312.2,4312.1,0.004]
[1757017891346,3.57838099,4312.2,4312.1,0.004]
[1757017891548,4.05278099,4312.2,4312.1,0.004]
[1757017892855,4.84478099,4312.2,4312.1,0.004]
[1757017895049,4.37038099,4312.2,4312.1,0.004]
[1757017895357,4.84478099,4312.2,4312.1,0.004]
[1757017895553,8.74178099,4312.2,4312.1,0.004]
[1757017896450,17.62162735,4312.2,4312.1,0.004]
[1757017896650,11.74178099,4312.2,4312.1,0.004]
[1757017896963,11.74178099,4312.2,4311.8,0.029]
[1757017896964,3.11116324,4311.9,4311.8,0.029]
[1757017897164,16.38848869,4311.9,4311.8,0.029]
[1757017897364,17.73778869,4311.9,4311.8,0.029]
[1757017899544,18.78638644,4311.9,4311.8,0.029]
[1757017900532,19.15016353,4311.9,4311.8,0.029]
[1757017901868,20.86016353,4311.9,4311.8,0.029]
[1757017906960,20.82946353,4311.9,4311.8,0.029]
[1757017908177,3.111486,4311.3,4311.2,0.004]
[1757017908380,5.81996509,4311.3,4311.2,0.004]
[1757017908676,9.71696509,4311.3,4311.2,0.3162]
[1757017910868,9.71696509,4311.3,4311.2,0.004]
[1757017911037,9.71696509,4311.3,4311.2,0.3162]
[1757017914177,5.81996509,4311.3,4311.2,0.3162]
[1757017914478,9.71696509,4311.3,4311.2,0.3162]
[1757017914842,2.81996509,4311.3,4311.2,0.7671]
[1757017915369,2.81996509,4311.3,4311.2,0.3162]
[1757017915969,2.81996509,4311.3,4311.2,0.7671]
[1757017916444,2.81996509,4311.3,4311.2,0.3162]
[1757017916646,2.81996509,4311.3,4311.2,0.004]
[1757017917263,2.81996509,4311.3,4311.2,0.3162]
[1757017918881,2.93596509,4311.3,4311.2,0.3162]
[1757017921149,2.93596509,4311.3,4311.2,0.004]
[1757017921363,4.12906509,4311.3,4311.2,0.004]
[1757017922388,2.93596509,4311.3,4311.2,0.3162]
[1757017922974,0.61647909,4311.3,4311.2,1.1713]
[1757017923681,2.93596509,4311.3,4311.2,0.3162]
[1757017924692,2.93596509,4311.3,4311.2,0.7671]
[1757017925279,2.93596509,4311.3,4311.2,0.3162]
[1757017925664,3.23466509,4311.3,4311.2,0.004]
[1757017925868,4.12906509,4311.3,4311.2,0.004]
[1757017926370,2.93596509,4311.3,4311.2,0.3162]
[1757017926569,2.93596509,4311.3,4311.2,0.7671]
[1757017928490,0.61647909,4311.3,4311.2,0.7671]
[1757017928691,0.50047909,4311.3,4311.2,1.1713]
[1757017928896,0.50047909,4311.3,4311.2,1.28883]
[1757017929196,0.50047909,4311.3,4311.2,0.88463]
[1757017930387,0.50047909,4311.3,4311.2,0.004]
[1757017930770,2.81996509,4311.3,4311.2,0.004]
[1757017931184,2.81996509,4311.3,4311.2,0.3129]
[1757017933104,0.50047909,4311.3,4311.2,0.7716]
[1757017933267,0.50047909,4311.3,4311.2,0.3129]
[1757017933268,2.81996509,4311.3,4311.2,0.3129]
[1757017933600,2.81996509,4311.3,4311.2,0.004]
[1757017933984,2.81996509,4311.3,4311.2,0.3129]
[1757017934908,2.81996509,4311.3,4311.2,0.7716]
[1757017935066,0.50047909,4311.3,4311.2,0.7716]
[1757017935596,0.50095382,4311.3,4311.2,0.7716]
[1757017936503,0.50095382,4311.3,4311.2,1.36336]
[1757017936986,0.50095382,4311.3,4311.2,3.6828998]
[1757017937305,0.50095382,4311.3,4311.2,4.7828998]
[1757017938466,0.50095382,4311.3,4311.2,8.6788998]
[1757017939296,0.001,4311.4,4311.3,2.319486]
[1757017939470,0.50154724,4311.4,4311.3,3.65241996]
[1757017939673,0.50154724,4311.4,4311.3,4.82421996]
[1757017939874,0.50154724,4311.4,4311.3,5.92421996]
[1757017940500,0.001,4311.4,4311.3,5.52001996]
[1757017940875,0.001,4311.4,4311.3,5.92421996]
[1757017941491,0.001,4311.4,4311.3,5.52001996]
[1757017943819,0.001,4311.4,4311.3,5.92421996]
[1757017944592,0.001,4311.4,4311.3,5.52001996]
[1757017947820,0.3064,4311.4,4311.2,0.004]
[1757017948021,0.3064,4311.4,4311.3,3.895]
[1757017948337,0.001,4311.4,4311.3,3.895]
[1757017949340,0.001,4311.4,4311.3,6.523386]
[1757017949506,0.001,4311.4,4311.3,6.982086]
[1757017949832,0.001,4311.4,4311.3,8.09565144]
[1757017950515,0.001,4311.4,4311.3,9.19565144]
[1757017950899,0.001,4311.4,4311.3,9.71585144]
[1757017952192,0.001,4311.4,4311.3,8.85295144]
[1757017952418,0.001,4311.4,4311.3,9.31165144]
[1757017956347,0.001,4311.4,4311.3,8.54405144]
[1757017957205,0.001,4311.4,4311.3,8.85295144]
[1757017957800,0.001,4311.4,4311.3,8.54405144]
[1757017958204,0.8044,4311.4,4311.2,0.12]
[1757017958406,0.93835685,4311.3,4311.2,0.004]
[1757017958605,0.93835685,4311.3,4311.2,3.898]
[1757017958936,1.71535685,4311.3,4311.2,3.898]
[1757017960646,0.50035685,4311.3,4311.2,3.898]
[1757017960850,0.50035685,4311.3,4311.2,4.1882]
[1757017962238,0.79125685,4311.3,4311.2,4.998]
[1757017962536,1.72715685,4311.3,4311.2,4.998]
[1757017962705,0.50035685,4311.3,4311.2,5.2882]
[1757017962905,0.79125685,4311.3,4311.2,4.998]
[1757017963236,1.72715685,4311.3,4311.2,4.998]
[1757017963747,0.50035685,4311.3,4311.2,5.2882]
[1757017964310,0.79125685,4311.3,4311.2,4.998]
[1757017965612,0.50035685,4311.3,4311.2,4.998]
[1757017966345,0.79125685,4311.3,4311.2,4.998]
[1757017966874,1.27735685,4311.3,4311.2,4.998]
[1757017967339,1.27735685,4311.3,4311.2,1.104]
[1757017967657,1.27735685,4311.3,4311.2,4.998]
[1757017968457,1.27735685,4311.3,4311.2,0.004]
[1757017968458,1.72715685,4311.3,4311.2,0.004]
[1757017968644,4.04664285,4311.3,4311.2,3.898]
[1757017971659,0.50035685,4311.3,4311.2,4.1882]
[1757017973476,0.50035685,4311.3,4311.2,5.2882]
[1757017974247,0.50035685,4311.3,4311.2,5.7224]
[1757017974859,0.50035685,4311.3,4311.2,5.2882]
[1757017979470,0.50035685,4311.3,4311.2,5.7224]
[1757017979668,0.50035685,4311.3,4311.2,5.2882]
[1757017980379,0.50035685,4311.3,4311.2,7.6077398]
[1757017980584,0.50035685,4311.3,4311.2,8.0419398]
[1757017981279,0.50035685,4311.3,4311.2,15.55117688]
[1757017981481,0.001,4311.4,4311.3,2.319486]
[1757017981684,0.001,4311.4,4311.3,3.18108086]
[1757017981853,0.001,4311.4,4311.3,3.58728086]
[1757017982055,0.001,4311.4,4311.3,4.68728086]
[1757017982267,0.001,4311.4,4311.3,6.91847139]
[1757017982783,0.001,4311.4,4311.3,10.40827139]
[1757017985288,0.778,4311.4,4311.3,4.009]
[1757017985463,1.72841203,4311.4,4311.3,3.893]
[1757017985860,1.27861203,4311.4,4311.3,3.893]
[1757017986583,1.72841203,4311.4,4311.3,3.893]
[1757017986789,4.04788332,4311.4,4311.2,0.004]
[1757017987086,3.21347129,4311.4,4311.3,3.893]
[1757017987290,3.71419081,4311.4,4311.3,3.893]
[1757017987454,1.84451952,4311.4,4311.3,3.893]
[1757017988160,4.16396848,4311.4,4311.3,3.893]
[1757017988556,2.319486,4311.3,4311.2,0.004]
[1757017988874,3.26540552,4311.3,4311.2,3.897]
[1757017989080,1.72951952,4311.3,4311.2,3.897]
[1757017989459,4.04900552,4311.3,4311.2,3.897]
[1757017990766,1.28431952,4311.3,4311.2,3.897]
[1757017990971,1.72951952,4311.3,4311.2,3.897]
[1757017991173,4.04900552,4311.3,4311.2,3.897]
[1757017991790,4.04900552,4311.3,4311.2,0.004]
[1757017991791,7.04900552,4311.3,4311.2,0.004]
[1757017992568,4.04900552,4311.3,4311.2,0.004]
[1757017999079,3.60380552,4311.3,4311.2,0.004]
[1757017999414,4.04900552,4311.3,4311.2,0.004]
[1757017999572,4.04900552,4311.3,4311.2,3.897]
[1757018000386,4.04883727,4311.3,4311.2,3.897]
[1757018000698,4.04883767,4311.3,4311.2,3.897]
[1757018004273,0.50055167,4311.3,4311.2,4.1843]
[1757018004892,0.61655167,4311.3,4311.2,4.1843]
[1757018005703,2.93603767,4311.3,4311.2,4.1843]
[1757018006281,2.93603767,4311.3,4311.2,3.897]
[1757018007111,3.71963767,4311.3,4311.2,3.897]
[1757018007511,4.16483767,4311.3,4311.2,3.897]
[1757018007889,4.16483767,4311.3,4311.2,0.004]
[1757018008200,4.16483767,4311.3,4311.2,3.896]
[1757018009308,4.95683767,4311.3,4311.2,0.004]
[1757018009511,7.95683767,4311.3,4311.2,0.004]
[1757018010595,11.84883767,4311.3,4311.2,0.004]
[1757018014994,6.1115398,4311.2,4311.1,0.004]
[1757018015210,12.49797064,4311.2,4311.1,0.004]
[1757018015385,13.72677064,4311.2,4311.1,0.004]
[1757018019719,14.7709529,4311.2,4311.1,0.004]
[1757018022430,14.3257529,4311.2,4311.1,0.004]
[1757018023533,14.7562529,4311.2,4311.1,0.004]
[1757018025124,3.11164741,4311.0,4310.8,0.029]
[1757018025307,10.62025289,4310.9,4310.8,0.029]
[1757018025616,11.82265289,4310.9,4310.8,0.029]
[1757018028601,12.18648742,4310.9,4310.8,0.029]
[1757018029827,8.29448742,4310.9,4310.8,0.029]
[1757018030026,8.29448742,4310.9,4310.6,0.004]
[1757018030027,6.11175503,4310.8,4310.6,0.004]
[1757018030196,7.50436051,4310.7,4310.6,0.004]
[1757018030397,7.79916051,4310.7,4310.6,0.004]
[1757018031495,7.61960479,4310.7,4310.6,0.004]
[1757018034031,7.57960479,4310.7,4310.6,0.004]
[1757018034432,14.50966622,4310.7,4310.6,0.004]
[1757018035214,6.67236051,4310.7,4310.6,0.3008]
[1757018035402,6.78836051,4310.7,4310.6,0.767]
[1757018035736,2.93636051,4310.7,4310.6,0.767]
[1757018036030,2.93636051,4310.7,4310.6,0.83963579]
[1757018037251,5.93636051,4310.7,4310.6,1.24383579]
[1757018037401,5.93636051,4310.7,4310.6,0.83963579]
[1757018038849,5.93636051,4310.7,4310.6,0.83963351]
[1757018040309,0.61655167,4310.7,4310.6,1.36861686]
[1757018040503,0.50055167,4310.7,4310.6,3.68847952]
[1757018041032,0.50055167,4310.7,4310.6,4.78847952]
[1757018042246,0.50055167,4310.7,4310.6,2.46861686]
[1757018045354,0.50055167,4310.7,4310.6,2.06441686]
[1757018047348,0.50055167,4310.7,4310.6,5.9554062]
[1757018047645,0.50055167,4310.7,4310.6,5.4892062]
[1757018048064,0.79535167,4310.7,4310.6,5.36442285]
[1757018048251,3.59226051,4310.7,4310.6,5.06762285]
[1757018048563,0.50055167,4310.7,4310.6,5.06762404]
[1757018048763,0.50055167,4310.7,4310.6,5.2918]
[1757018048967,0.50055167,4310.7,4310.6,6.23902381]
[1757018049170,0.50055167,4310.7,4310.6,9.64718093]
[1757018049464,0.50055167,4310.7,4310.6,9.57455712]
[1757018049673,0.50055167,4310.7,4310.6,9.64717946]
[1757018050210,0.50055167,4310.7,4310.6,9.57455712]
[1757018050853,0.50055167,4310.7,4310.6,6.45271582]
[1757018051176,0.50053069,4310.7,4310.6,7.32731582]
[1757018051730,0.50053069,4310.7,4310.6,9.64717848]
[1757018052146,0.50053069,4310.7,4310.6,9.24297848]
[1757018054061,0.50053069,4310.7,4310.6,6.92311582]
[1757018054266,0.50053069,4310.7,4310.6,9.24297848]
[1757018054967,0.117,4311.1,4310.8,2.31974365]
[1757018055262,0.50031196,4311.0,4310.9,3.96262136]
[1757018055465,0.50031196,4311.0,4310.9,4.72162136]
[1757018055764,0.50031196,4311.0,4310.9,5.82162136]
[1757018056887,0.50031196,4311.0,4310.9,8.14132258]
[1757018057194,0.50031196,4311.0,4310.9,8.66152258]
[1757018057359,0.50031196,4311.0,4310.9,10.55604149]
[1757018058889,0.001,4311.1,4311.0,2.31964741]
[1757018059084,0.001,4311.1,4311.0,2.86266877]
[1757018059289,0.001,4311.1,4311.0,3.15126877]
[1757018059591,0.001,4311.1,4311.0,4.36826877]
[1757018059889,0.001,4311.1,4311.0,5.57708646]
[1757018060385,0.001,4311.1,4311.0,5.10668646]
[1757018060580,0.001,4311.1,4311.0,5.57708646]
[1757018061665,0.001,4311.1,4311.0,5.98128646]
[1757018063195,0.001,4311.1,4311.0,8.98128646]
[1757018063395,0.001,4311.4,4311.3,9.24954743]
[1757018063563,0.001,4311.4,4311.3,15.03424316]
[1757018063768,0.001,4311.4,4311.3,16.31341935]
[1757018064006,0.001,4311.4,4311.3,9.38335792]
[1757018064209,0.001,4311.4,4311.3,10.48335792]
[1757018069312,0.001,4311.4,4311.3,10.07915792]
[1757018071180,0.001,4311.4,4311.3,6.19015792]
[1757018071501,0.001,4311.4,4311.3,10.07815792]
[1757018071909,0.001,4311.4,4311.3,6.19015792]
[1757018072096,0.001,4311.4,4311.3,10.48235792]
[1757018072301,0.001,4311.4,4311.3,10.48135792]
[1757018074409,0.001,4311.4,4311.3,17.41141935]
[1757018074601,0.001,4311.6,4311.5,2.3193784]
[1757018074796,0.001,4311.6,4311.5,9.99354665]
[1757018075000,0.001,4311.6,4311.5,10.65675532]
[1757018075178,0.001,4311.6,4311.5,10.74972268]
[1757018077809,0.001,4311.6,4311.5,10.27932268]
[1757018078503,0.001,4311.6,4311.5,10.74972268]
[1757018081614,0.001,4311.6,4311.5,10.27932268]
[1757018082820,0.2889,4311.6,4311.5,9.99072268]
[1757018083117,1.2475,4311.6,4311.5,9.99072268]
[1757018083309,0.7824,4311.6,4311.5,9.99072268]
[1757018083706,0.001,4311.6,4311.5,9.99072268]
[1757018084708,0.001,4311.6,4311.5,10.29702268]
[1757018085109,0.001,4311.6,4311.5,10.76722268]
[1757018086203,0.001,4311.6,4311.5,10.29702268]
[1757018089830,0.001,4311.6,4311.5,12.66702268]
[1757018090236,0.001,4311.6,4311.5,13.13722268]
[1757018090416,0.001,4311.6,4311.5,17.33342268]
[1757018090732,0.025,4311.8,4311.7,2.31927082]
[1757018090899,0.025,4311.8,4311.7,17.00833093]
[1757018091099,0.025,4311.8,4311.7,20.53583823]
[1757018091334,0.025,4311.8,4311.7,21.42078983]
[1757018092514,0.025,4311.8,4311.7,21.01658983]
[1757018093230,0.025,4311.8,4311.7,19.75338983]
[1757018093529,0.025,4311.8,4311.7,20.22358983]
[1757018094025,0.025,4311.8,4311.7,19.75338983]
[1757018094428,0.3129,4311.8,4311.7,13.56489177]
[1757018094632,0.025,4311.8,4311.7,19.75338983]
[1757018094929,0.025,4311.8,4311.7,20.22358983]
[1757018095701,0.025,4311.8,4311.7,17.85358983]
[1757018097764,0.025,4311.8,4311.7,17.38338983]
[1757018098730,0.8064,4311.8,4311.7,8.19489177]
[1757018098934,0.025,4311.8,4311.7,6.71952242]
[1757018100104,0.025,4311.8,4311.7,10.18972242]
[1757018100305,1e-08,4311.8,4311.7,19.63812048]
[1757018100538,0.001,4312.3,4312.2,2.3190019]
[1757018100747,0.001,4312.3,4312.2,18.7120075]
[1757018100951,0.001,4312.3,4312.2,19.1343075]
[1757018101246,0.001,4312.3,4312.2,20.101647]
[1757018101925,0.4661,4313.3,4312.2,20.101647]
[1757018101926,1e-08,4312.5,4312.4,3.11089435]
[1757018102108,1e-08,4312.5,4312.4,11.72708329]
[1757018102311,1e-08,4312.5,4312.4,15.15250232]
[1757018102512,1e-08,4312.5,4312.4,15.2454293]
[1757018106554,1e-08,4312.5,4312.4,17.6154293]
[1757018106711,1e-08,4312.5,4312.4,17.7314293]
[1757018107616,0.001,4313.3,4312.4,17.7314293]
[1757018107617,1e-08,4313.2,4313.1,6.110518]
[1757018107846,1e-08,4313.2,4313.1,15.87571606]
[1757018108046,1e-08,4313.2,4313.1,16.76821606]
[1757018108447,1e-08,4313.2,4313.1,16.9391624]
[1757018108643,1e-08,4313.2,4313.1,17.24480329]
[1757018108844,1e-08,4313.2,4313.1,19.43814268]
[1757018109645,1e-08,4313.2,4313.1,25.32034074]
[1757018109818,1e-08,4313.2,4313.1,25.72454074]
[1757018110017,1e-08,4313.2,4313.1,18.96044268]
[1757018110648,1e-08,4313.2,4313.1,14.77864268]
[1757018110853,0.77190001,4313.2,4313.1,18.66164268]
[1757018111145,0.77190001,4313.2,4313.1,18.96044268]
[1757018111146,1e-08,4313.2,4313.1,18.96044268]
[1757018111347,1e-08,4313.2,4313.1,19.40714268]
[1757018111531,0.30650001,4313.2,4313.1,18.66138319]
[1757018111942,1.24670001,4313.2,4313.1,18.44891949]
[1757018112137,1.24670001,4313.2,4313.1,13.77391949]
[1757018112338,1.24670001,4313.2,4313.1,17.65691949]
[1757018112974,1.24670001,4313.2,4313.1,17.86940257]
[1757018113269,1.24670001,4313.2,4313.1,12.50511684]
[1757018113570,1.24670001,4313.2,4313.1,15.50416009]
[1757018114266,1.24670001,4313.2,4313.1,15.68010303]
[1757018116577,1e-08,4313.2,4313.1,15.68010303]
[1757018116966,1e-08,4313.2,4313.1,15.97890303]
[1757018117265,1e-08,4313.2,4313.1,17.8086524]
[1757018119476,0.30650001,4313.2,4313.1,19.8798524]
[1757018119773,0.77190001,4313.2,4313.1,19.8798524]
[1757018119951,1.24670001,4313.2,4313.1,13.99765434]
[1757018120153,1.24670001,4313.2,4313.1,13.99802109]
[1757018120574,1e-08,4313.2,4313.1,13.99802109]
[1757018124865,1e-08,4313.2,4313.1,19.88021915]
[1757018125599,1e-08,4313.2,4313.1,20.17901915]
[1757018126870,1e-08,4313.2,4313.1,19.88021915]
[1757018127289,1.24670001,4313.2,4313.1,13.99802109]
[1757018127871,1.24670001,4313.2,4313.1,10.11602109]
[1757018128076,1.24670001,4313.2,4313.1,13.99702109]
[1757018130791,1.24670001,4313.2,4313.1,8.99132878]
[1757018133893,1.24670001,4313.2,4313.1,5.11032878]
[1757018134095,1.24670001,4313.2,4313.1,8.99132878]
[1757018134304,1.24670001,4313.2,4313.1,8.99206942]
[1757018135392,1.24670001,4313.2,4313.1,4.30355142]
[1757018135598,1.74746166,4313.2,4313.1,4.30355142]
[1757018135811,1.74746166,4313.2,4313.1,4.09463372]
[1757018136006,1.74746166,4313.2,4313.1,3.881]
[1757018136206,1.74746166,4313.2,4312.8,2.43462985]
[1757018136536,1.44081456,4313.1,4312.9,3.881]
[1757018136707,1.2467,4313.0,4312.9,3.881]
[1757018136895,1.2467,4313.0,4312.9,6.19962551]
[1757018139155,1.2467,4313.0,4312.9,3.881]
[1757018139426,1.2467,4313.0,4312.9,6.19962551]
[1757018140413,1.2467,4313.0,4312.9,2.31862551]
[1757018140619,1.2467,4313.0,4312.9,6.19962551]
[1757018141542,1.2467,4313.0,4312.9,3.881]
[1757018141543,1.74688063,4313.0,4312.9,3.881]
[1757018142060,1.74688063,4313.0,4312.9,6.19962551]
[1757018142278,1.74688063,4313.0,4312.9,3.881]
[1757018142419,9.94765044,4313.0,4312.9,2.881]
[1757018142750,9.94765044,4313.0,4312.6,1.828]
[1757018142751,2.31862551,4312.9,4312.8,3.881]
[1757018142919,2.31862551,4312.9,4312.6,1.712]
[1757018142920,9.13352928,4312.9,4312.6,0.004]
[1757018143122,2.72873304,4312.7,4312.6,3.885]
[1757018143455,3.22891367,4312.7,4312.6,0.004]
[1757018143751,13.58675999,4312.7,4312.6,0.004]
[1757018145621,4.34268063,4312.7,4312.6,0.004]
[1757018145821,1.22668063,4312.7,4312.6,0.004]
[1757018146021,1.22668063,4312.7,4312.6,0.07659201]
[1757018147248,1.22668063,4312.7,4312.6,0.004]
[1757018147448,1.22668063,4312.7,4312.6,0.07659201]
[1757018147652,1.22668063,4312.7,4312.6,0.004]
[1757018147848,1.22668063,4312.7,4312.6,0.07659201]
[1757018148150,1.22668063,4312.7,4312.6,0.004]
[1757018148352,1.22668063,4312.7,4312.6,0.07659201]
[1757018148549,1.22668063,4312.7,4312.6,0.004]
[1757018148935,1.22668063,4312.7,4312.6,0.07659201]
[1757018149251,1.22668063,4312.7,4312.6,0.004]
[1757018149550,3.54541367,4312.7,4312.6,0.004]
[1757018150051,1.22668063,4312.7,4312.6,0.004]
[1757018150726,0.79418063,4312.7,4312.6,0.004]
[1757018150926,0.294,4312.7,4312.6,0.07659201]
[1757018151126,0.7265,4312.7,4312.6,0.004]
[1757018151333,0.116,4312.9,4312.6,0.004]
[1757018151334,0.116,4312.9,4312.6,0.53539201]
[1757018151564,0.116,4312.9,4312.6,0.4628]
[1757018151758,0.5485,4312.9,4312.6,0.53539201]
[1757018151943,0.5485,4312.9,4312.7,0.07259201]
[1757018152357,0.294,4312.8,4312.7,0.07259201]
[1757018152730,1.22507824,4312.8,4312.6,0.004]
[1757018152935,0.294,4312.8,4312.6,0.07659201]
[1757018153160,0.294,4312.8,4312.6,0.004]
[1757018153369,0.294,4312.8,4312.7,0.07259201]
[1757018153572,0.79259835,4312.8,4312.6,0.4628]
[1757018153777,0.294,4312.8,4312.6,0.53539201]
[1757018153979,1e-08,4313.2,4312.7,0.81729201]
[1757018154183,0.49857634,4313.1,4312.8,4.41239201]
[1757018154465,1e-08,4313.2,4312.9,0.07259201]
[1757018154667,0.4325,4313.1,4313.0,0.07259201]
[1757018154873,1.22513068,4313.1,4312.9,0.07259201]
[1757018155037,0.294,4313.1,4313.0,0.07259201]
[1757018155365,2.31857175,4313.0,4312.9,0.07259201]
[1757018155537,3.24970207,4313.0,4312.9,0.07259201]
[1757018155867,3.54370207,4313.0,4312.9,0.07259201]
[1757018156637,1.22513032,4313.0,4312.9,0.07259201]
[1757018157338,3.54370207,4313.0,4312.9,0.07259201]
[1757018157535,1.22513032,4313.0,4312.7,0.07259201]
[1757018157774,2.81730863,4312.9,4312.8,0.07259201]
[1757018158272,3.11130863,4312.9,4312.8,0.07259201]
[1757018158472,3.54380863,4312.9,4312.8,0.07259201]
[1757018158652,2.31867928,4312.8,4312.7,0.07259201]
[1757018158848,9.74265592,4312.8,4312.7,0.07259201]
[1757018159175,10.46915592,4312.8,4312.7,0.07259201]
[1757018160483,1.22513032,4312.8,4312.7,0.07259201]
[1757018160639,1.22585658,4312.8,4312.7,0.07259201]
[1757018160835,3.54453586,4312.8,4312.7,0.07259201]
[1757018161254,1.22585658,4312.8,4312.7,0.07258941]
[1757018161775,3.54453586,4312.8,4312.7,0.07258941]
[1757018162470,6.54453586,4312.8,4312.7,0.07258941]
[1757018162774,7.33653586,4312.8,4312.7,0.07258941]
[1757018162989,6.11073304,4312.7,4312.6,0.004]
[1757018163288,6.61008962,4312.7,4312.6,0.004]
[1757018163463,7.33658962,4312.7,4312.6,0.004]
[1757018164084,7.70027772,4312.7,4312.6,0.004]
[1757018164693,12.24429444,4312.3,4312.2,0.004]
[1757018164863,16.62465102,4312.3,4312.2,0.004]
[1757018165064,17.35115102,4312.3,4312.2,0.004]
[1757018165263,17.46715102,4312.3,4312.2,0.004]
[1757018165662,3.61535658,4312.3,4312.2,0.7487]
[1757018165869,3.61535658,4312.3,4312.2,0.82130832]
[1757018166768,6.2283047,4312.3,4312.2,0.53540832]
[1757018166962,6.2283047,4312.3,4312.2,0.07660832]
[1757018168964,5.9343047,4312.3,4312.2,0.07660832]
[1757018169161,5.9343047,4312.3,4312.2,0.56170832]
[1757018169776,3.61535658,4312.3,4312.2,0.56170832]
[1757018170607,0.61535658,4312.3,4312.2,0.84800832]
[1757018170778,6.19972439,4312.8,4312.2,7.75049105]
[1757018170779,0.116,4312.8,4312.2,7.75049105]
[1757018170980,0.5000997,4312.7,4312.3,1.01250832]
[1757018171180,0.116,4312.8,4312.4,1.01250832]
[1757018171181,0.5000997,4312.6,4312.4,1.01250832]
[1757018171500,2.43468084,4312.8,4312.5,0.84400832]
[1757018171704,0.50025263,4312.7,4312.6,0.07260832]
[1757018172199,0.80575263,4312.7,4312.6,0.07260832]
[1757018172364,3.12448567,4312.7,4312.6,0.07260832]
[1757018173376,3.57788567,4312.7,4312.6,0.07260832]
[1757018173575,3.12448567,4312.7,4312.6,0.07260832]
[1757018173797,0.80575263,4312.7,4312.6,0.07260832]
[1757018174184,3.12448567,4312.7,4312.6,0.07260832]
[1757018174485,3.57788567,4312.7,4312.6,0.07260832]
[1757018177690,2.31894812,4312.3,4312.2,0.004]
[1757018177919,5.93520075,4312.3,4312.2,0.07660476]
[1757018178114,10.57510075,4312.3,4312.2,0.004]
[1757018180713,10.57610075,4312.3,4312.2,0.004]
[1757018181212,5.93520075,4312.3,4312.2,0.4891]
[1757018181413,6.24070075,4312.3,4312.2,0.004]
[1757018184039,6.69410075,4312.3,4312.2,0.004]
[1757018185034,3.61625263,4312.3,4312.2,0.7754]
[1757018185232,5.93520075,4312.3,4312.2,0.7754]
[1757018185441,5.93520075,4312.3,4312.2,0.4891]
[1757018186060,5.93520075,4312.3,4312.2,0.004]
[1757018186061,3.69410075,4312.3,4312.2,0.004]
[1757018186663,3.24070075,4312.3,4312.2,0.004]
[1757018187565,2.93520075,4312.3,4312.2,0.4891]
[1757018187921,3.24070075,4312.3,4312.2,0.004]
[1757018188127,3.69410075,4312.3,4312.2,0.004]
[1757018189135,7.57610075,4312.3,4312.2,0.004]
[1757018190525,2.93520075,4312.3,4312.2,0.004]
[1757018190766,2.93520075,4312.3,4312.2,0.7754]
[1757018191864,0.61625263,4312.3,4312.2,0.7754]
[1757018192236,0.61625263,4312.3,4312.2,1.2302]
[1757018192427,0.50025263,4312.3,4312.2,1.58553619]
[1757018192629,0.50025263,4312.3,4312.2,1.2302]
[1757018192823,0.50025263,4312.3,4312.2,3.6652019]
[1757018193051,0.001,4312.7,4312.6,2.31878681]
[1757018193260,0.50153476,4312.7,4312.6,4.14378681]
[1757018193461,0.50153476,4312.7,4312.6,5.36998681]
[1757018194359,0.50153476,4312.7,4312.6,6.9332]
[1757018195360,0.50153476,4312.7,4312.6,6.4784]
[1757018195726,0.50153476,4312.7,4312.6,2.5964]
[1757018195956,0.50153476,4312.7,4312.6,6.9322]
[1757018196156,0.50116119,4312.7,4312.6,6.4774]
[1757018198745,0.50116119,4312.7,4312.6,6.69107617]
[1757018202984,0.79936119,4312.7,4312.6,2.40777617]
[1757018203191,0.79936119,4312.7,4312.6,5.80367617]
[1757018203562,0.50116119,4312.7,4312.6,6.28157617]
[1757018204179,0.79936119,4312.7,4312.6,5.80367617]
[1757018204551,0.50116119,4312.7,4312.6,6.28157617]
[1757018205067,0.50116119,4312.7,4312.6,6.58497617]
[1757018211397,0.50116119,4312.7,4312.6,8.90376298]
[1757018211566,0.50116119,4312.7,4312.6,9.36416298]
[1757018211894,0.001,4312.7,4312.6,10.54406497]
[1757018215706,0.50091778,4312.7,4312.6,6.28157617]
[1757018216776,0.79911778,4312.7,4312.6,1.92267617]
[1757018217002,0.79911778,4312.7,4312.6,5.80367617]
[1757018217679,0.79911778,4312.7,4312.6,6.28157617]
[1757018218006,0.79911778,4312.7,4312.6,6.58497617]
[1757018218007,0.50091778,4312.7,4312.6,6.58497617]
[1757018218479,0.50091778,4312.7,4312.6,8.90376298]
[1757018219276,0.50091778,4312.7,4312.6,9.66680584]
[1757018219806,0.001,4312.7,4312.6,15.5484821]
[1757018222278,0.50226183,4312.7,4312.6,15.5524821]
[1757018223305,0.50226183,4312.7,4312.6,17.9224821]
[1757018223606,0.50226183,4312.7,4312.6,12.04080584]
[1757018224103,0.50226183,4312.7,4312.6,12.03980584]
[1757018224707,0.50226183,4312.7,4312.6,11.57940584]
[1757018225090,0.50226183,4312.7,4312.6,12.03980584]
[1757018226377,0.50226183,4312.7,4312.6,11.82612967]
[1757018226582,0.50226183,4312.7,4312.6,12.04014454]
[1757018228716,0.50226183,4312.7,4312.6,17.9218208]
[1757018229686,0.001,4312.7,4312.6,17.9218208]
[1757018230083,0.001,4312.7,4312.6,18.0378208]